Workbook

Sheet Welcome
A1: ©2005 Seref, Ahuja, Winston

Sheet Descrip (hidden)
B15: Decision variables:
B16: 1 | C16: Number to produce of each product (in each factory for each period) = x(ijt)
B17: 2 | C17: Number to ship of each product (from each factory to each customer for each period) = y(ijkt)
B19: Constraints:
B20: 1 | C20: Amount shipped of each product (per factory in each period) must be less than or equal to the amount produced of each product (at each factory in each period).
C21: Remember that the amount shipped is also per customer, therefore we must sum these values over
C22: all customers for each product, factory, and period to compare it to the production amount.
D24: ∑(k) y(ijkt) ≤ x(ijt) | F24: for all i, j, t
B26: 2 | C26: Resources used (per factory per period) must be less than or equal to available resources (per factory per period).
C27: Here, resources used are equal to the resources needed per product (given, N(ri)) times the amount produced of each product,
C28: and the available resources are given (per factory per period, A(rjt)).
D30: ∑(i) N(ri) * x(ijt) ≤ A(rjt) | F30: for all r, j, t
B32: 3 | C32: Ending inventory (per product per factory per period, V(ijt)) must be greater than 0 for each period.
C33: Here, we define the ending inventory of period t+1 to be equal to the ending inventory in
C34: period t plus the amount produced in period t+1 minus the amount shipped in period t+1.
D36: V(ij(t+1)) = V(ijt) + x(ij(t+1)) -- y(ij(t+1))
D38: V(ijt) ≥ 0 | F38: for all i, j, t
B40: 4 | C40: Amount shipped (of each product from each factory to each customer) must meet demand per customer.
C41: Here, demand has been given per product per customer per period, D(ikt). Remember that the amount shipped is also per factory,
C42: therefore we must sum these values over all factories for each product, customer, and period to compare it to the demand values.
D44: ∑(j) y(ijkt) ≥ D(ikt)
B46: 5 | C46: All decision variables should be greater than or equal to 0.
D48: y(ijkt) ≥ 0, x(ijt) ≥ 0
B51: Objective function: Minimize total costs = total shipping costs + total holding costs + total production costs.
B52: 1 | C52: Total shipping costs = amount shipped * shipping costs per product from each factory to each customer.
C53: Here, shipping costs have been given per product per factory per customer, s(ijk). Remember that the amount shipped is also per period,
C54: therefore we must sum these values over all periods for each product, customer, and factory to multiply with the shipping costs.
D56: ∑(t) y(ijkt) * s(ijk)
B58: 2 | C58: Total holding costs = ending inventory * holding cost per product per factory per period. Here, holding costs have been given per product per period, h(it).
C59: Remember that ending inventory is also in terms of factories, therefore we must sum these values over all factories to multiply with holding costs.
D61: ∑(j) V(ijt) * h(it)
B63: 3 | C63: Total production costs = amount produced * production cost per product per factory per period.
C64: Here, production costs are given per product per factory per period, p(ijt).
D66: x(ijt) * p(ijt)
B68: 4 | C68: Total costs:
D70: z = ∑(i) ∑(j) ∑(k) (∑(t) y(ijkt) * s(ijk)) + ∑(i) ∑(t) (∑(j) V(ijt) * h(it)) +∑(i) ∑(j) ∑(t) (x(ijt) * p(ijt))

Sheet Demand (hidden)
B5: Product | C5: Customer | D5: Period | E5: Demand
B6: 1 | C6: 1 | D6: 1 | E6: 1333
D7: 2 | E7: 2000
C8: 2 | D8: 1 | E8: 1333
D9: 2 | E9: 2000
C10: 3 | D10: 1 | E10: 1333
D11: 2 | E11: 2000
B12: 2 | C12: 1 | D12: 1 | E12: 1333
D13: 2 | E13: 2000
C14: 2 | D14: 1 | E14: 1333
D15: 2 | E15: 2000
C16: 3 | D16: 1 | E16: 2000
D17: 2 | E17: 2133
B18: 3 | C18: 1 | D18: 1 | E18: 2266
D19: 2 | E19: 2400
C20: 2 | D20: 1 | E20: 2533
D21: 2 | E21: 2666
C22: 3 | D22: 1 | E22: 2800
D23: 2 | E23: 2933

Sheet AvailRes (hidden)
B5: Resource | C5: Factory | D5: Period | E5: Amount Available
B6: 1 | C6: 1 | D6: 1 | E6: 100000
D7: 2 | E7: 100000
C8: 2 | D8: 1 | E8: 100000
D9: 2 | E9: 100000
C10: 3 | D10: 1 | E10: 100000
D11: 2 | E11: 100000
B12: 2 | C12: 1 | D12: 1 | E12: 100000
D13: 2 | E13: 100000
C14: 2 | D14: 1 | E14: 100000
D15: 2 | E15: 100000
C16: 3 | D16: 1 | E16: 100000
D17: 2 | E17: 100000
B18: 3 | C18: 1 | D18: 1 | E18: 100000
D19: 2 | E19: 100000
C20: 2 | D20: 1 | E20: 100000
D21: 2 | E21: 100000
C22: 3 | D22: 1 | E22: 100000
D23: 2 | E23: 100000

Sheet ResNeeded (hidden)
B5: Resource | C5: Product | D5: Amount Needed
B6: 1 | C6: 1 | D6: 10
C7: 2 | D7: 10
C8: 3 | D8: 10
B9: 2 | C9: 1 | D9: 10
C10: 2 | D10: 10
C11: 3 | D11: 10
B12: 3 | C12: 1 | D12: 10
C13: 2 | D13: 10
C14: 3 | D14: 10

Sheet HoldingCost (hidden)
B5: Product | C5: Period | D5: Holding Cost
B6: 1 | C6: 1 | D6: 0.5
C7: 2 | D7: 0.5
B8: 2 | C8: 1 | D8: 0.5
C9: 2 | D9: 0.5
B10: 3 | C10: 1 | D10: 0.5
C11: 2 | D11: 0.5

Sheet ProductionCost (hidden)
B5: Product | C5: Factory | D5: Period | E5: Production Cost
B6: 1 | C6: 1 | D6: 1 | E6: 0.25
D7: 2 | E7: 0.25
C8: 2 | D8: 1 | E8: 0.25
D9: 2 | E9: 0.25
C10: 3 | D10: 1 | E10: 0.25
D11: 2 | E11: 0.25
B12: 2 | C12: 1 | D12: 1 | E12: 0.25
D13: 2 | E13: 0.25
C14: 2 | D14: 1 | E14: 0.25
D15: 2 | E15: 0.25
C16: 3 | D16: 1 | E16: 0.25
D17: 2 | E17: 0.25
B18: 3 | C18: 1 | D18: 1 | E18: 0.25
D19: 2 | E19: 0.25
C20: 2 | D20: 1 | E20: 0.25
D21: 2 | E21: 0.25
C22: 3 | D22: 1 | E22: 0.25
D23: 2 | E23: 0.25

Sheet Model (hidden)
B4: Decision Variables | M4: Constraints | AO4: Objective Function
B5: Number of products to produce at each factory per period | G5: Number of products to ship to each customer | M5: Amount shipped per factory must be less than or equal to amount produced | T5: Resources used must be less than or equal to Available Resources | AA5: Ending inventory must be greater than 0 for each period | AH5: Amount shipped must meet Demand per customer | AO5: Minimize total costs = shipping costs*amount shipped + holding cost * ending inventory + production cost * amount produced
B6: Product | C6: Factory | D6: Period | E6: Number to Produce | G6: Product | H6: Factory | I6: Customer | J6: Period | K6: Number to Ship | M6: Product | N6: Factory | O6: Period | P6: Number Shipped | R6: Number Produced | T6: Resource | U6: Factory | V6: Period | W6: Amount Needed | Y6: Amount Available | AA6: Product | AB6: Factory | AC6: Period | AD6: Inventory | AH6: Product | AI6: Customer | AJ6: Period | AK6: Amount Shipped | AM6: Demand | AO6: Product | AP6: Factory | AQ6: Customer | AR6: Total Shipping Cost | AT6: Product | AU6: Factory | AV6: Period | AW6: Total Holding Cost | AY6: Product | AZ6: Factory | BA6: Period | BB6: Total Production Cost | BD6: Total Cost
B7: 1 | C7: 1 | D7: 1 | E7: 0 | G7: 1 | H7: 1 | I7: 1 | J7: 1 | K7: 0 | M7: 1 | N7: 1 | O7: 1 | P7: =SUM(K7,K9,K11) -> 0 | Q7: <= | R7: =DVToProd -> 0 | T7: 1 | U7: 1 | V7: 1 | W7: =Model!E7*ResNeeded!D6+Model!E13*ResNeeded!$D$7+Model!E19*ResNeeded!$D$8 -> 100000 | X7: <= | Y7: =AvailRes!E6 -> 100000 | AA7: 1 | AB7: 1 | AC7: 1 | AD7: =InitialInv!D6+E7-P7 -> 1000 | AE7: >= | AF7: 0 | AH7: 1 | AI7: 1 | AJ7: 1 | AK7: =SUM(K7,K13,K19) -> 1333 | AL7: >= | AM7: =Demand!E6 -> 1333 | AO7: 1 | AP7: 1 | AQ7: 1 | AR7: =SUM(K7:K8)*ShippingCost!E6 -> 0 | AT7: 1 | AU7: 1 | AV7: 1 | AW7: =AD7*HoldingCost!$D$6 -> 500 | AY7: 1 | AZ7: 1 | BA7: 1 | BB7: =E7*ProductionCost!E6 -> 0 | BD7: =SUM(OFShipCost,OFHoldCost,OFProdCost) -> 23558.4
D8: 2 | E8: 3867 | J8: 2 | K8: 0 | O8: 2 | P8: =SUM(K8,K10,K12) -> 3867 | Q8: <= | R8: 3867 | V8: 2 | W8: =E8*ResNeeded!$D$6+Model!E14*ResNeeded!$D$7+Model!E20*ResNeeded!$D$8 -> 100000 | X8: <= | Y8: =AvailRes!E7 -> 100000 | AC8: 2 | AD8: =AD7+E8-P8 -> 1000 | AE8: >= | AF8: 0 | AJ8: 2 | AK8: 2000 | AL8: >= | AM8: =Demand!E7 -> 2000 | AQ8: 2 | AR8: =SUM(K9:K10)*ShippingCost!E7 -> 280.05 | AV8: 2 | AW8: =AD8*HoldingCost!$D$7 -> 500 | BA8: 2 | BB8: =E8*ProductionCost!E7 -> 966.75
C9: 2 | D9: 1 | E9: 3999 | I9: 2 | J9: 1 | K9: 0 | N9: 2 | O9: 1 | P9: =SUM(K13,K15,K17) -> 3999 | Q9: <= | R9: 3999 | U9: 2 | V9: 1 | W9: =E9*ResNeeded!$D$6+Model!E15*ResNeeded!$D$7+Model!E21*ResNeeded!$D$8 -> 62640 | X9: <= | Y9: =AvailRes!E8 -> 100000 | AB9: 2 | AC9: 1 | AD9: =InitialInv!D7+E9-P9 -> 1000 | AE9: >= | AF9: 0 | AI9: 2 | AJ9: 1 | AK9: 1333 | AL9: >= | AM9: =Demand!E8 -> 1333 | AQ9: 3 | AR9: =SUM(K11:K12)*ShippingCost!E8 -> 300 | AU9: 2 | AV9: 1 | AW9: =AD9*HoldingCost!$D$6 -> 500 | AZ9: 2 | BA9: 1 | BB9: =E9*ProductionCost!E8 -> 999.75
D10: 2 | E10: 2001 | J10: 2 | K10: 1867 | O10: 2 | P10: =SUM(K14,K16,K18) -> 2001 | Q10: <= | R10: 2001 | V10: 2 | W10: =E10*ResNeeded!$D$6+Model!E16*ResNeeded!$D$7+Model!E22*ResNeeded!$D$8 -> 100000 | X10: <= | Y10: =AvailRes!E9 -> 100000 | AC10: 2 | AD10: =AD9+E10-P10 -> 1000 | AE10: >= | AF10: 0 | AJ10: 2 | AK10: 2000 | AL10: >= | AM10: =Demand!E9 -> 2000 | AP10: 2 | AQ10: 1 | AR10: =SUM(K13:K14)*ShippingCost!E9 -> 480.15 | AV10: 2 | AW10: =AD10*HoldingCost!$D$7 -> 500 | BA10: 2 | BB10: =E10*ProductionCost!E9 -> 500.25
C11: 3 | D11: 1 | E11: 0 | I11: 3 | J11: 1 | K11: 0 | N11: 3 | O11: 1 | P11: =SUM(K19,K21,K23) -> 0 | Q11: <= | R11: 0 | U11: 3 | V11: 1 | W11: =E11*ResNeeded!$D$6+Model!E17*ResNeeded!$D$7+Model!E23*ResNeeded!$D$8 -> 0 | X11: <= | Y11: =AvailRes!E10 -> 100000 | AB11: 3 | AC11: 1 | AD11: =InitialInv!D8+E11-P11 -> 1000 | AE11: >= | AF11: 0 | AI11: 3 | AJ11: 1 | AK11: 1333 | AL11: >= | AM11: =Demand!E10 -> 1333 | AQ11: 2 | AR11: =SUM(K15:K16)*ShippingCost!E10 -> 219.9 | AU11: 3 | AV11: 1 | AW11: =AD11*HoldingCost!$D$6 -> 500 | AZ11: 3 | BA11: 1 | BB11: =E11*ProductionCost!E10 -> 0
D12: 2 | E12: 132 | J12: 2 | K12: 2000 | O12: 2 | P12: =SUM(K20,K22,K24) -> 132 | Q12: <= | R12: 132 | V12: 2 | W12: =E12*ResNeeded!$D$6+Model!E18*ResNeeded!$D$7+Model!E24*ResNeeded!$D$8 -> 1320 | X12: <= | Y12: =AvailRes!E11 -> 100000 | AC12: 2 | AD12: =AD11+E12-P12 -> 1000 | AE12: >= | AF12: 0 | AJ12: 2 | AK12: 2000 | AL12: >= | AM12: =Demand!E11 -> 2000 | AQ12: 3 | AR12: =SUM(K17:K18)*ShippingCost!E11 -> 199.95 | AV12: 2 | AW12: =AD12*HoldingCost!$D$7 -> 500 | BA12: 2 | BB12: =E12*ProductionCost!E11 -> 33
B13: 2 | C13: 1 | D13: 1 | E13: 2401 | H13: 2 | I13: 1 | J13: 1 | K13: 1333 | M13: 2 | N13: 1 | O13: 1 | P13: =SUM(K25,K27,K29) -> 2401 | Q13: <= | R13: 2401 | T13: 2 | U13: 1 | V13: 1 | W13: =E7*ResNeeded!D9+E13*ResNeeded!$D$10+E19*ResNeeded!$D$11 -> 100000 | X13: <= | Y13: =AvailRes!E12 -> 100000 | AA13: 2 | AB13: 1 | AC13: 1 | AD13: =InitialInv!D9+E13-P13 -> 1000 | AE13: >= | AF13: 0 | AH13: 2 | AI13: 1 | AJ13: 1 | AK13: =SUM(K25,K31,K37) -> 1333 | AL13: >= | AM13: =Demand!E12 -> 1333 | AP13: 3 | AQ13: 1 | AR13: =SUM(K19:K20)*ShippingCost!E12 -> 19.8 | AT13: 2 | AU13: 1 | AV13: 1 | AW13: =AD13*HoldingCost!$D$8 -> 500 | AY13: 2 | AZ13: 1 | BA13: 1 | BB13: =E13*ProductionCost!E12 -> 600.25
D14: 2 | E14: 6133 | J14: 2 | K14: 1868 | O14: 2 | P14: =SUM(K26,K28,K30) -> 6133 | Q14: <= | R14: 6133 | V14: 2 | W14: =E8*ResNeeded!$D$9+E14*ResNeeded!$D$10+E20*ResNeeded!$D$11 -> 100000 | X14: <= | Y14: =AvailRes!E13 -> 100000 | AC14: 2 | AD14: =AD13+E14-P14 -> 1000 | AE14: >= | AF14: 0 | AJ14: 2 | AK14: 2000 | AL14: >= | AM14: =Demand!E13 -> 2000 | AQ14: 2 | AR14: =SUM(K21:K22)*ShippingCost!E13 -> 0 | AV14: 2 | AW14: =AD14*HoldingCost!$D$9 -> 500 | BA14: 2 | BB14: =E14*ProductionCost!E13 -> 1533.25
C15: 2 | D15: 1 | E15: 2265 | I15: 2 | J15: 1 | K15: 1333 | N15: 2 | O15: 1 | P15: =SUM(K31,K33,K35) -> 2265 | Q15: <= | R15: 2265 | U15: 2 | V15: 1 | W15: =E9*ResNeeded!$D$9+E15*ResNeeded!$D$10+E21*ResNeeded!$D$11 -> 62640 | X15: <= | Y15: =AvailRes!E14 -> 100000 | AB15: 2 | AC15: 1 | AD15: =InitialInv!D10+E15-P15 -> 1000 | AE15: >= | AF15: 0 | AI15: 2 | AJ15: 1 | AK15: 1333 | AL15: >= | AM15: =Demand!E14 -> 1333 | AQ15: 3 | AR15: =SUM(K23:K24)*ShippingCost!E14 -> 0 | AU15: 2 | AV15: 1 | AW15: =AD15*HoldingCost!$D$8 -> 500 | AZ15: 2 | BA15: 1 | BB15: =E15*ProductionCost!E14 -> 566.25
D16: 2 | E16: 0 | J16: 2 | K16: 133 | O16: 2 | P16: =SUM(K32,K34,K36) -> 0 | Q16: <= | R16: 0 | V16: 2 | W16: =E10*ResNeeded!$D$9+E16*ResNeeded!$D$10+E22*ResNeeded!$D$11 -> 100000 | X16: <= | Y16: =AvailRes!E15 -> 100000 | AC16: 2 | AD16: =AD15+E16-P16 -> 1000 | AE16: >= | AF16: 0 | AJ16: 2 | AK16: 2000 | AL16: >= | AM16: =Demand!E15 -> 2000 | AO16: 2 | AP16: 1 | AQ16: 1 | AR16: =SUM(K25:K26)*ShippingCost!E15 -> 300 | AV16: 2 | AW16: =AD16*HoldingCost!$D$9 -> 500 | BA16: 2 | BB16: =E16*ProductionCost!E15 -> 0
C17: 3 | D17: 1 | E17: 0 | I17: 3 | J17: 1 | K17: 1333 | N17: 3 | O17: 1 | P17: =SUM(K37,K39,K41) -> 0 | Q17: <= | R17: 0 | U17: 3 | V17: 1 | W17: =E11*ResNeeded!$D$9+E17*ResNeeded!$D$10+E23*ResNeeded!$D$11 -> 0 | X17: <= | Y17: =AvailRes!E16 -> 100000 | AB17: 3 | AC17: 1 | AD17: =InitialInv!D11+E17-P17 -> 1000 | AE17: >= | AF17: 0 | AI17: 3 | AJ17: 1 | AK17: 2000 | AL17: >= | AM17: =Demand!E16 -> 2000 | AQ17: 2 | AR17: =SUM(K27:K28)*ShippingCost!E16 -> 360.15 | AU17: 3 | AV17: 1 | AW17: =AD17*HoldingCost!$D$8 -> 500 | AZ17: 3 | BA17: 1 | BB17: =E17*ProductionCost!E16 -> 0
D18: 2 | E18: 0 | J18: 2 | K18: 0 | O18: 2 | P18: =SUM(K38,K40,K42) -> 0 | Q18: <= | R18: 0 | V18: 2 | W18: =E12*ResNeeded!$D$9+E18*ResNeeded!$D$10+E24*ResNeeded!$D$11 -> 1320 | X18: <= | Y18: =AvailRes!E17 -> 100000 | AC18: 2 | AD18: =AD17+E18-P18 -> 1000 | AE18: >= | AF18: 0 | AJ18: 2 | AK18: 2133 | AL18: >= | AM18: =Demand!E17 -> 2133 | AQ18: 3 | AR18: =SUM(K29:K30)*ShippingCost!E17 -> 619.95 | AV18: 2 | AW18: =AD18*HoldingCost!$D$9 -> 500 | BA18: 2 | BB18: =E18*ProductionCost!E17 -> 0
B19: 3 | C19: 1 | D19: 1 | E19: 7599 | H19: 3 | I19: 1 | J19: 1 | K19: 0 | M19: 3 | N19: 1 | O19: 1 | P19: =SUM(K43,K45,K47) -> 7599 | Q19: <= | R19: 7599 | T19: 3 | U19: 1 | V19: 1 | W19: =E7*ResNeeded!$D$12+E13*ResNeeded!$D$13+E19*ResNeeded!$D$14 -> 100000 | X19: <= | Y19: =AvailRes!E18 -> 100000 | AA19: 3 | AB19: 1 | AC19: 1 | AD19: =InitialInv!D12+E19-P19 -> 1000 | AE19: >= | AF19: 0 | AH19: 3 | AI19: 1 | AJ19: 1 | AK19: =SUM(K43,K49,K55) -> 2266 | AL19: >= | AM19: =Demand!E18 -> 2266 | AP19: 2 | AQ19: 1 | AR19: =SUM(K31:K32)*ShippingCost!E18 -> 199.95 | AT19: 3 | AU19: 1 | AV19: 1 | AW19: =AD19*HoldingCost!$D$10 -> 500 | AY19: 3 | AZ19: 1 | BA19: 1 | BB19: =E19*ProductionCost!E18 -> 1899.75
D20: 2 | E20: 0 | J20: 2 | K20: 132 | O20: 2 | P20: =SUM(K44,K46,K48) -> 0 | Q20: <= | R20: 0 | V20: 2 | W20: =E8*ResNeeded!$D$12+E14*ResNeeded!$D$13+E20*ResNeeded!$D$14 -> 100000 | X20: <= | Y20: =AvailRes!E19 -> 100000 | AC20: 2 | AD20: =AD19+E20-P20 -> 1000 | AE20: >= | AF20: 0 | AJ20: 2 | AK20: 2400 | AL20: >= | AM20: =Demand!E19 -> 2400 | AQ20: 2 | AR20: =SUM(K33:K34)*ShippingCost!E19 -> 139.8 | AV20: 2 | AW20: =AD20*HoldingCost!$D$11 -> 500 | BA20: 2 | BB20: =E20*ProductionCost!E19 -> 0
C21: 2 | D21: 1 | E21: 0 | I21: 2 | J21: 1 | K21: 0 | N21: 2 | O21: 1 | P21: =SUM(K49,K51,K53) -> 0 | Q21: <= | R21: 0 | U21: 2 | V21: 1 | W21: =E9*ResNeeded!$D$12+E15*ResNeeded!$D$13+E21*ResNeeded!$D$14 -> 62640 | X21: <= | Y21: =AvailRes!E20 -> 100000 | AB21: 2 | AC21: 1 | AD21: =InitialInv!D13+E21-P21 -> 1000 | AE21: >= | AF21: 0 | AI21: 2 | AJ21: 1 | AK21: 2533 | AL21: >= | AM21: =Demand!E20 -> 2533 | AQ21: 3 | AR21: =SUM(K35:K36)*ShippingCost!E20 -> 0 | AU21: 2 | AV21: 1 | AW21: =AD21*HoldingCost!$D$10 -> 500 | AZ21: 2 | BA21: 1 | BB21: =E21*ProductionCost!E20 -> 0
D22: 2 | E22: 7999 | J22: 2 | K22: 0 | O22: 2 | P22: =SUM(K50,K52,K54) -> 7999 | Q22: <= | R22: 7999 | V22: 2 | W22: =E10*ResNeeded!$D$12+E16*ResNeeded!$D$13+E22*ResNeeded!$D$14 -> 100000 | X22: <= | Y22: =AvailRes!E21 -> 100000 | AC22: 2 | AD22: =AD21+E22-P22 -> 1000 | AE22: >= | AF22: 0 | AJ22: 2 | AK22: 2666 | AL22: >= | AM22: =Demand!E21 -> 2666 | AP22: 3 | AQ22: 1 | AR22: =SUM(K37:K38)*ShippingCost!E21 -> 0 | AV22: 2 | AW22: =AD22*HoldingCost!$D$11 -> 500 | BA22: 2 | BB22: =E22*ProductionCost!E21 -> 1999.75
C23: 3 | D23: 1 | E23: 0 | I23: 3 | J23: 1 | K23: 0 | N23: 3 | O23: 1 | P23: =SUM(K55,K57,K59) -> 0 | Q23: <= | R23: 0 | U23: 3 | V23: 1 | W23: =E11*ResNeeded!$D$12+E17*ResNeeded!$D$13+E23*ResNeeded!$D$14 -> 0 | X23: <= | Y23: =AvailRes!E22 -> 100000 | AB23: 3 | AC23: 1 | AD23: =InitialInv!D14+E23-P23 -> 1000 | AE23: >= | AF23: 0 | AI23: 3 | AJ23: 1 | AK23: 2800 | AL23: >= | AM23: =Demand!E22 -> 2800 | AQ23: 2 | AR23: =SUM(K39:K40)*ShippingCost!E22 -> 0 | AU23: 3 | AV23: 1 | AW23: =AD23*HoldingCost!$D$10 -> 500 | AZ23: 3 | BA23: 1 | BB23: =E23*ProductionCost!E22 -> 0
D24: 2 | E24: 0 | J24: 2 | K24: 0 | O24: 2 | P24: =SUM(K56,K58,K60) -> 0 | Q24: <= | R24: 0 | V24: 2 | W24: =E12*ResNeeded!$D$12+E18*ResNeeded!$D$13+E24*ResNeeded!$D$14 -> 1320 | X24: <= | Y24: =AvailRes!E23 -> 100000 | AC24: 2 | AD24: =AD23+DVToProd-P24 -> 1000 | AE24: >= | AF24: 0 | AJ24: 2 | AK24: 2933 | AL24: >= | AM24: =Demand!E23 -> 2933 | AQ24: 3 | AR24: =SUM(K41:K42)*ShippingCost!E23 -> 0 | AV24: 2 | AW24: =AD24*HoldingCost!$D$11 -> 500 | BA24: 2 | BB24: =E24*ProductionCost!E23 -> 0
G25: 2 | H25: 1 | I25: 1 | J25: 1 | K25: 0 | AO25: 3 | AP25: 1 | AQ25: 1 | AR25: =SUM(K43:K44)*ShippingCost!E24 -> 339.9
J26: 2 | K26: 2000 | AQ26: 2 | AR26: =SUM(K45:K46)*ShippingCost!E25 -> 379.95 | AW26: =SUM(AW7:AW24) -> 9000 | BB26: =SUM(BB7:BB24) -> 9099
I27: 2 | J27: 1 | K27: 401 | AQ27: 3 | AR27: =SUM(K47:K48)*ShippingCost!E26 -> 420
J28: 2 | K28: 2000 | AP28: 2 | AQ28: 1 | AR28: =SUM(K49:K50)*ShippingCost!E27 -> 360
I29: 3 | J29: 1 | K29: 2000 | AQ29: 2 | AR29: =SUM(K51:K52)*ShippingCost!E28 -> 399.9
J30: 2 | K30: 2133 | AQ30: 3 | AR30: =SUM(K53:K54)*ShippingCost!E29 -> 439.95
H31: 2 | I31: 1 | J31: 1 | K31: 1333 | AP31: 3 | AQ31: 1 | AR31: =SUM(K55:K56)*ShippingCost!E30 -> 0
J32: 2 | K32: 0 | AQ32: 2 | AR32: =SUM(K57:K58)*ShippingCost!E31 -> 0
I33: 2 | J33: 1 | K33: 932 | AQ33: 3 | AR33: =SUM(K59:K60)*ShippingCost!E32 -> 0
J34: 2 | K34: 0
I35: 3 | J35: 1 | K35: 0 | AR35: =SUM(AR7:AR33) -> 5459.4
J36: 2 | K36: 0
H37: 3 | I37: 1 | J37: 1 | K37: 0
J38: 2 | K38: 0
I39: 2 | J39: 1 | K39: 0
J40: 2 | K40: 0
I41: 3 | J41: 1 | K41: 0
J42: 2 | K42: 0
G43: 3 | H43: 1 | I43: 1 | J43: 1 | K43: 2266
J44: 2 | K44: 0
I45: 2 | J45: 1 | K45: 2533
J46: 2 | K46: 0
I47: 3 | J47: 1 | K47: 2800
J48: 2 | K48: 0
H49: 2 | I49: 1 | J49: 1 | K49: 0
J50: 2 | K50: 2400
I51: 2 | J51: 1 | K51: 0
J52: 2 | K52: 2666
I53: 3 | J53: 1 | K53: 0
J54: 2 | K54: 2933
H55: 3 | I55: 1 | J55: 1 | K55: 0
J56: 2 | K56: 0
I57: 2 | J57: 1 | K57: 0
J58: 2 | K58: 0
I59: 3 | J59: 1 | K59: 0
J60: 2 | K60: 0

Sheet ShippingCost (hidden)
B5: Product | C5: Factory | D5: Customer | E5: Shipping Cost
B6: 1 | C6: 1 | D6: 1 | E6: 0.15
D7: 2 | E7: 0.15
D8: 3 | E8: 0.15
C9: 2 | D9: 1 | E9: 0.15
D10: 2 | E10: 0.15
D11: 3 | E11: 0.15
C12: 3 | D12: 1 | E12: 0.15
D13: 2 | E13: 0.15
D14: 3 | E14: 0.15
B15: 2 | C15: 1 | D15: 1 | E15: 0.15
D16: 2 | E16: 0.15
D17: 3 | E17: 0.15
C18: 2 | D18: 1 | E18: 0.15
D19: 2 | E19: 0.15
D20: 3 | E20: 0.15
C21: 3 | D21: 1 | E21: 0.15
D22: 2 | E22: 0.15
D23: 3 | E23: 0.15
B24: 3 | C24: 1 | D24: 1 | E24: 0.15
D25: 2 | E25: 0.15
D26: 3 | E26: 0.15
C27: 2 | D27: 1 | E27: 0.15
D28: 2 | E28: 0.15
D29: 3 | E29: 0.15
C30: 3 | D30: 1 | E30: 0.15
D31: 2 | E31: 0.15
D32: 3 | E32: 0.15

Sheet InitialInv (hidden)
B5: Product | C5: Factory | D5: Initial Inventory
B6: 1 | C6: 1 | D6: 1000
C7: 2 | D7: 1000
C8: 3 | D8: 1000
B9: 2 | C9: 1 | D9: 1000
C10: 2 | D10: 1000
C11: 3 | D11: 1000
B12: 3 | C12: 1 | D12: 1000
C13: 2 | D13: 1000
C14: 3 | D14: 1000

Sheet Report (hidden)
B8: Total Cost
B9: =OFTotalCost -> 23558.4

Sheet Results (hidden)
B4: Number of products produced at each factory per period | G4: Number of products shipped to each customer | M4: Final Shipping Costs | R4: Final Holding Costs | W4: Final Production Costs
B5: Product | C5: Factory | D5: Period | E5: Number to Produce | G5: Product | H5: Factory | I5: Customer | J5: Period | K5: Number to Ship | M5: Product | N5: Factory | O5: Customer | P5: Total Shipping Cost | R5: Product | S5: Factory | T5: Period | U5: Total Holding Cost | W5: Product | X5: Factory | Y5: Period | Z5: Total Production Cost | AB5: Total Cost
B6: 1 | C6: 1 | D6: 1 | E6: =Model!E7 -> 0 | G6: 1 | H6: 1 | I6: 1 | J6: 1 | K6: =Model!K7 -> 0 | M6: 1 | N6: 1 | O6: 1 | P6: =Model!AR7 -> 0 | R6: 1 | S6: 1 | T6: 1 | U6: =Model!AW7 -> 500 | W6: 1 | X6: 1 | Y6: 1 | Z6: =Model!BB7 -> 0 | AB6: =OFTotalCost -> 23558.4
B7: 1 | C7: 1 | D7: 2 | E7: =Model!E8 -> 3867 | G7: 1 | H7: 1 | I7: 1 | J7: 2 | K7: =Model!K8 -> 0 | M7: 1 | N7: 1 | O7: 2 | P7: =Model!AR8 -> 280.05 | R7: 1 | S7: 1 | T7: 2 | U7: =Model!AW8 -> 500 | W7: 1 | X7: 1 | Y7: 2 | Z7: =Model!BB8 -> 966.75
B8: 1 | C8: 2 | D8: 1 | E8: =Model!E9 -> 3999 | G8: 1 | H8: 1 | I8: 2 | J8: 1 | K8: =Model!K9 -> 0 | M8: 1 | N8: 1 | O8: 3 | P8: =Model!AR9 -> 300 | R8: 1 | S8: 2 | T8: 1 | U8: =Model!AW9 -> 500 | W8: 1 | X8: 2 | Y8: 1 | Z8: =Model!BB9 -> 999.75
B9: 1 | C9: 2 | D9: 2 | E9: =Model!E10 -> 2001 | G9: 1 | H9: 1 | I9: 2 | J9: 2 | K9: =Model!K10 -> 1867 | M9: 1 | N9: 2 | O9: 1 | P9: =Model!AR10 -> 480.15 | R9: 1 | S9: 2 | T9: 2 | U9: =Model!AW10 -> 500 | W9: 1 | X9: 2 | Y9: 2 | Z9: =Model!BB10 -> 500.25
B10: 1 | C10: 3 | D10: 1 | E10: =Model!E11 -> 0 | G10: 1 | H10: 1 | I10: 3 | J10: 1 | K10: =Model!K11 -> 0 | M10: 1 | N10: 2 | O10: 2 | P10: =Model!AR11 -> 219.9 | R10: 1 | S10: 3 | T10: 1 | U10: =Model!AW11 -> 500 | W10: 1 | X10: 3 | Y10: 1 | Z10: =Model!BB11 -> 0
B11: 1 | C11: 3 | D11: 2 | E11: =Model!E12 -> 132 | G11: 1 | H11: 1 | I11: 3 | J11: 2 | K11: =Model!K12 -> 2000 | M11: 1 | N11: 2 | O11: 3 | P11: =Model!AR12 -> 199.95 | R11: 1 | S11: 3 | T11: 2 | U11: =Model!AW12 -> 500 | W11: 1 | X11: 3 | Y11: 2 | Z11: =Model!BB12 -> 33
B12: 2 | C12: 1 | D12: 1 | E12: =Model!E13 -> 2401 | G12: 1 | H12: 2 | I12: 1 | J12: 1 | K12: =Model!K13 -> 1333 | M12: 1 | N12: 3 | O12: 1 | P12: =Model!AR13 -> 19.8 | R12: 2 | S12: 1 | T12: 1 | U12: =Model!AW13 -> 500 | W12: 2 | X12: 1 | Y12: 1 | Z12: =Model!BB13 -> 600.25
B13: 2 | C13: 1 | D13: 2 | E13: =Model!E14 -> 6133 | G13: 1 | H13: 2 | I13: 1 | J13: 2 | K13: =Model!K14 -> 1868 | M13: 1 | N13: 3 | O13: 2 | P13: =Model!AR14 -> 0 | R13: 2 | S13: 1 | T13: 2 | U13: =Model!AW14 -> 500 | W13: 2 | X13: 1 | Y13: 2 | Z13: =Model!BB14 -> 1533.25
B14: 2 | C14: 2 | D14: 1 | E14: =Model!E15 -> 2265 | G14: 1 | H14: 2 | I14: 2 | J14: 1 | K14: =Model!K15 -> 1333 | M14: 1 | N14: 3 | O14: 3 | P14: =Model!AR15 -> 0 | R14: 2 | S14: 2 | T14: 1 | U14: =Model!AW15 -> 500 | W14: 2 | X14: 2 | Y14: 1 | Z14: =Model!BB15 -> 566.25
B15: 2 | C15: 2 | D15: 2 | E15: =Model!E16 -> 0 | G15: 1 | H15: 2 | I15: 2 | J15: 2 | K15: =Model!K16 -> 133 | M15: 2 | N15: 1 | O15: 1 | P15: =Model!AR16 -> 300 | R15: 2 | S15: 2 | T15: 2 | U15: =Model!AW16 -> 500 | W15: 2 | X15: 2 | Y15: 2 | Z15: =Model!BB16 -> 0
B16: 2 | C16: 3 | D16: 1 | E16: =Model!E17 -> 0 | G16: 1 | H16: 2 | I16: 3 | J16: 1 | K16: =Model!K17 -> 1333 | M16: 2 | N16: 1 | O16: 2 | P16: =Model!AR17 -> 360.15 | R16: 2 | S16: 3 | T16: 1 | U16: =Model!AW17 -> 500 | W16: 2 | X16: 3 | Y16: 1 | Z16: =Model!BB17 -> 0
B17: 2 | C17: 3 | D17: 2 | E17: =Model!E18 -> 0 | G17: 1 | H17: 2 | I17: 3 | J17: 2 | K17: =Model!K18 -> 0 | M17: 2 | N17: 1 | O17: 3 | P17: =Model!AR18 -> 619.95 | R17: 2 | S17: 3 | T17: 2 | U17: =Model!AW18 -> 500 | W17: 2 | X17: 3 | Y17: 2 | Z17: =Model!BB18 -> 0
B18: 3 | C18: 1 | D18: 1 | E18: =Model!E19 -> 7599 | G18: 1 | H18: 3 | I18: 1 | J18: 1 | K18: =Model!K19 -> 0 | M18: 2 | N18: 2 | O18: 1 | P18: =Model!AR19 -> 199.95 | R18: 3 | S18: 1 | T18: 1 | U18: =Model!AW19 -> 500 | W18: 3 | X18: 1 | Y18: 1 | Z18: =Model!BB19 -> 1899.75
B19: 3 | C19: 1 | D19: 2 | E19: =Model!E20 -> 0 | G19: 1 | H19: 3 | I19: 1 | J19: 2 | K19: =Model!K20 -> 132 | M19: 2 | N19: 2 | O19: 2 | P19: =Model!AR20 -> 139.8 | R19: 3 | S19: 1 | T19: 2 | U19: =Model!AW20 -> 500 | W19: 3 | X19: 1 | Y19: 2 | Z19: =Model!BB20 -> 0
B20: 3 | C20: 2 | D20: 1 | E20: =Model!E21 -> 0 | G20: 1 | H20: 3 | I20: 2 | J20: 1 | K20: =Model!K21 -> 0 | M20: 2 | N20: 2 | O20: 3 | P20: =Model!AR21 -> 0 | R20: 3 | S20: 2 | T20: 1 | U20: =Model!AW21 -> 500 | W20: 3 | X20: 2 | Y20: 1 | Z20: =Model!BB21 -> 0
B21: 3 | C21: 2 | D21: 2 | E21: =Model!E22 -> 7999 | G21: 1 | H21: 3 | I21: 2 | J21: 2 | K21: =Model!K22 -> 0 | M21: 2 | N21: 3 | O21: 1 | P21: =Model!AR22 -> 0 | R21: 3 | S21: 2 | T21: 2 | U21: =Model!AW22 -> 500 | W21: 3 | X21: 2 | Y21: 2 | Z21: =Model!BB22 -> 1999.75
B22: 3 | C22: 3 | D22: 1 | E22: =Model!E23 -> 0 | G22: 1 | H22: 3 | I22: 3 | J22: 1 | K22: =Model!K23 -> 0 | M22: 2 | N22: 3 | O22: 2 | P22: =Model!AR23 -> 0 | R22: 3 | S22: 3 | T22: 1 | U22: =Model!AW23 -> 500 | W22: 3 | X22: 3 | Y22: 1 | Z22: =Model!BB23 -> 0
B23: 3 | C23: 3 | D23: 2 | E23: =Model!E24 -> 0 | G23: 1 | H23: 3 | I23: 3 | J23: 2 | K23: =Model!K24 -> 0 | M23: 2 | N23: 3 | O23: 3 | P23: =Model!AR24 -> 0 | R23: 3 | S23: 3 | T23: 2 | U23: =Model!AW24 -> 500 | W23: 3 | X23: 3 | Y23: 2 | Z23: =Model!BB24 -> 0
G24: 2 | H24: 1 | I24: 1 | J24: 1 | K24: =Model!K25 -> 0 | M24: 3 | N24: 1 | O24: 1 | P24: =Model!AR25 -> 339.9
G25: 2 | H25: 1 | I25: 1 | J25: 2 | K25: =Model!K26 -> 2000 | M25: 3 | N25: 1 | O25: 2 | P25: =Model!AR26 -> 379.95 | U25: =OFHoldCost -> 9000 | Z25: =OFProdCost -> 9099
G26: 2 | H26: 1 | I26: 2 | J26: 1 | K26: =Model!K27 -> 401 | M26: 3 | N26: 1 | O26: 3 | P26: =Model!AR27 -> 420
G27: 2 | H27: 1 | I27: 2 | J27: 2 | K27: =Model!K28 -> 2000 | M27: 3 | N27: 2 | O27: 1 | P27: =Model!AR28 -> 360
G28: 2 | H28: 1 | I28: 3 | J28: 1 | K28: =Model!K29 -> 2000 | M28: 3 | N28: 2 | O28: 2 | P28: =Model!AR29 -> 399.9
G29: 2 | H29: 1 | I29: 3 | J29: 2 | K29: =Model!K30 -> 2133 | M29: 3 | N29: 2 | O29: 3 | P29: =Model!AR30 -> 439.95
G30: 2 | H30: 2 | I30: 1 | J30: 1 | K30: =Model!K31 -> 1333 | M30: 3 | N30: 3 | O30: 1 | P30: =Model!AR31 -> 0
G31: 2 | H31: 2 | I31: 1 | J31: 2 | K31: =Model!K32 -> 0 | M31: 3 | N31: 3 | O31: 2 | P31: =Model!AR32 -> 0
G32: 2 | H32: 2 | I32: 2 | J32: 1 | K32: =Model!K33 -> 932 | M32: 3 | N32: 3 | O32: 3 | P32: =Model!AR33 -> 0
G33: 2 | H33: 2 | I33: 2 | J33: 2 | K33: =Model!K34 -> 0
G34: 2 | H34: 2 | I34: 3 | J34: 1 | K34: =Model!K35 -> 0 | P34: =OFShipCost -> 5459.4
G35: 2 | H35: 2 | I35: 3 | J35: 2 | K35: =Model!K36 -> 0
G36: 2 | H36: 3 | I36: 1 | J36: 1 | K36: =Model!K37 -> 0
G37: 2 | H37: 3 | I37: 1 | J37: 2 | K37: =Model!K38 -> 0
G38: 2 | H38: 3 | I38: 2 | J38: 1 | K38: =Model!K39 -> 0
G39: 2 | H39: 3 | I39: 2 | J39: 2 | K39: =Model!K40 -> 0
G40: 2 | H40: 3 | I40: 3 | J40: 1 | K40: =Model!K41 -> 0
G41: 2 | H41: 3 | I41: 3 | J41: 2 | K41: =Model!K42 -> 0
G42: 3 | H42: 1 | I42: 1 | J42: 1 | K42: =Model!K43 -> 2266
G43: 3 | H43: 1 | I43: 1 | J43: 2 | K43: =Model!K44 -> 0
G44: 3 | H44: 1 | I44: 2 | J44: 1 | K44: =Model!K45 -> 2533
G45: 3 | H45: 1 | I45: 2 | J45: 2 | K45: =Model!K46 -> 0
G46: 3 | H46: 1 | I46: 3 | J46: 1 | K46: =Model!K47 -> 2800
G47: 3 | H47: 1 | I47: 3 | J47: 2 | K47: =Model!K48 -> 0
G48: 3 | H48: 2 | I48: 1 | J48: 1 | K48: =Model!K49 -> 0
G49: 3 | H49: 2 | I49: 1 | J49: 2 | K49: =Model!K50 -> 2400
G50: 3 | H50: 2 | I50: 2 | J50: 1 | K50: =Model!K51 -> 0
G51: 3 | H51: 2 | I51: 2 | J51: 2 | K51: =Model!K52 -> 2666
G52: 3 | H52: 2 | I52: 3 | J52: 1 | K52: =Model!K53 -> 0
G53: 3 | H53: 2 | I53: 3 | J53: 2 | K53: =Model!K54 -> 2933
G54: 3 | H54: 3 | I54: 1 | J54: 1 | K54: =Model!K55 -> 0
G55: 3 | H55: 3 | I55: 1 | J55: 2 | K55: =Model!K56 -> 0
G56: 3 | H56: 3 | I56: 2 | J56: 1 | K56: =Model!K57 -> 0
G57: 3 | H57: 3 | I57: 2 | J57: 2 | K57: =Model!K58 -> 0
G58: 3 | H58: 3 | I58: 3 | J58: 1 | K58: =Model!K59 -> 0
G59: 3 | H59: 3 | I59: 3 | J59: 2 | K59: =Model!K60 -> 0

Sheet NumProd (hidden)
B4: Number to Produce | D4: Period
B5: Product | C5: Factory | D5: 1 | E5: 2 | F5: Grand Total
B6: 1 | C6: 1 | D6: 0 | E6: 2000 | F6: 2000
C7: 2 | D7: 3999 | E7: 4000 | F7: 7999
C8: 3 | D8: 0 | E8: 0 | F8: 0
B9: 1 Total | D9: 3999 | E9: 6000 | F9: 9999
B11: 2 | C11: 1 | D11: 2000 | E11: 0 | F11: 2000
C12: 2 | D12: 2666 | E12: 4000 | F12: 6666
C13: 3 | D13: 0 | E13: 2132.999957 | F13: 2132.999957
B14: 2 Total | D14: 4666 | E14: 6132.999957 | F14: 10798.99996
B16: 3 | C16: 1 | D16: 0 | E16: 9.094037523e-09 | F16: 9.094037523e-09
C17: 2 | D17: 3334.999842 | E17: 2000 | F17: 5334.999842
C18: 3 | D18: 4264.000005 | E18: 5998.999833 | F18: 10262.99984
B19: 3 Total | D19: 7598.999846 | E19: 7998.999833 | F19: 15597.99968
B21: Grand Total | D21: 16263.99985 | E21: 20131.99979 | F21: 36395.99964

Sheet NumShip (hidden)
B4: Number to Ship | E4: Period
B5: Product | C5: Factory | D5: Customer | E5: 1 | F5: 2 | G5: Grand Total
B6: 1 | C6: 1 | D6: 1 | E6: 0 | F6: 2000 | G6: 2000
D7: 2 | E7: 0 | F7: 0 | G7: 0
D8: 3 | E8: 0 | F8: 0 | G8: 0
C9: 1 Total | E9: 0 | F9: 2000 | G9: 2000
C10: 2 | D10: 1 | E10: 1333 | F10: 0 | G10: 1333
D11: 2 | E11: 1333 | F11: 2000 | G11: 3333
D12: 3 | E12: 1333 | F12: 2000 | G12: 3333
C13: 2 Total | E13: 3999 | F13: 4000 | G13: 7999
C14: 3 | D14: 1 | E14: 0 | F14: 0 | G14: 0
D15: 2 | E15: 0 | F15: 0 | G15: 0
D16: 3 | E16: 0 | F16: 0 | G16: 0
C17: 3 Total | E17: 0 | F17: 0 | G17: 0
B18: 1 Total | E18: 3999 | F18: 6000 | G18: 9999
B20: 2 | C20: 1 | D20: 1 | E20: 0 | F20: 0 | G20: 0
D21: 2 | E21: 0 | F21: 0 | G21: 0
D22: 3 | E22: 2000 | F22: 0 | G22: 2000
C23: 1 Total | E23: 2000 | F23: 0 | G23: 2000
C24: 2 | D24: 1 | E24: 1333 | F24: 2000 | G24: 3333
D25: 2 | E25: 1333 | F25: 2000 | G25: 3333
D26: 3 | E26: 0 | F26: 0 | G26: 0
C27: 2 Total | E27: 2666 | F27: 4000 | G27: 6666
C28: 3 | D28: 1 | E28: 0 | F28: 0 | G28: 0
D29: 2 | E29: 0 | F29: 0 | G29: 0
D30: 3 | E30: 0 | F30: 2132.999957 | G30: 2132.999957
C31: 3 Total | E31: 0 | F31: 2132.999957 | G31: 2132.999957
B32: 2 Total | E32: 4666 | F32: 6132.999957 | G32: 10798.99996
B34: 3 | C34: 1 | D34: 1 | E34: 0 | F34: 0 | G34: 0
D35: 2 | E35: 0 | F35: 0 | G35: 0
D36: 3 | E36: 0 | F36: 0 | G36: 0
C37: 1 Total | E37: 0 | F37: 0 | G37: 0
C38: 2 | D38: 1 | E38: 0 | F38: 0 | G38: 0
D39: 2 | E39: 534.9998982 | F39: 0 | G39: 534.9998982
D40: 3 | E40: 2799.999943 | F40: 2000.000005 | G40: 4799.999948
C41: 2 Total | E41: 3334.999842 | F41: 2000.000005 | G41: 5334.999847
C42: 3 | D42: 1 | E42: 2265.999954 | F42: 2399.999951 | G42: 4665.999906
D43: 2 | E43: 1998.000051 | F43: 2665.999946 | G43: 4663.999997
D44: 3 | E44: 0 | F44: 932.9999357 | G44: 932.9999357
C45: 3 Total | E45: 4264.000005 | F45: 5998.999833 | G45: 10262.99984
B46: 3 Total | E46: 7598.999846 | F46: 7998.999838 | G46: 15597.99968
B48: Grand Total | E48: 16263.99985 | F48: 20131.9998 | G48: 36395.99964

Sheet ShipCost (hidden)
B4: Total Shipping Cost | D4: Customer
B5: Product | C5: Factory | D5: 1 | E5: 2 | F5: 3 | G5: Grand Total
B6: 1 | C6: 1 | D6: 300 | E6: 0 | F6: 0 | G6: 300
C7: 2 | D7: 199.95 | E7: 499.95 | F7: 499.95 | G7: 1199.85
C8: 3 | D8: 0 | E8: 0 | F8: 0 | G8: 0
B9: 1 Total | D9: 499.95 | E9: 499.95 | F9: 499.95 | G9: 1499.85
B11: 2 | C11: 1 | D11: 0 | E11: 0 | F11: 300 | G11: 300
C12: 2 | D12: 499.95 | E12: 499.95 | F12: 0 | G12: 999.9
C13: 3 | D13: 0 | E13: 0 | F13: 319.9499935 | G13: 319.9499935
B14: 2 Total | D14: 499.95 | E14: 499.95 | F14: 619.9499935 | G14: 1619.849994
B16: 3 | C16: 1 | D16: 0 | E16: 0 | F16: 0 | G16: 0
C17: 2 | D17: 0 | E17: 80.24998473 | F17: 719.9999923 | G17: 800.249977
C18: 3 | D18: 699.8999859 | E18: 699.5999995 | F18: 139.9499903 | G18: 1539.449976
B19: 3 Total | D19: 699.8999859 | E19: 779.8499842 | F19: 859.9499826 | G19: 2339.699953
B21: Grand Total | D21: 1699.799986 | E21: 1779.749984 | F21: 1979.849976 | G21: 5459.399946

Sheet HoldCost (hidden)
B4: Total Holding Cost | D4: Period
B5: Product | C5: Factory | D5: 1 | E5: 2 | F5: Grand Total
B6: 1 | C6: 1 | D6: 500 | E6: 500 | F6: 1000
C7: 2 | D7: 500 | E7: 500 | F7: 1000
C8: 3 | D8: 500 | E8: 500 | F8: 1000
B9: 1 Total | D9: 1500 | E9: 1500 | F9: 3000
B11: 2 | C11: 1 | D11: 500 | E11: 500 | F11: 1000
C12: 2 | D12: 500 | E12: 500 | F12: 1000
C13: 3 | D13: 500 | E13: 500 | F13: 1000
B14: 2 Total | D14: 1500 | E14: 1500 | F14: 3000
B16: 3 | C16: 1 | D16: 500 | E16: 500 | F16: 1000
C17: 2 | D17: 500 | E17: 499.9999975 | F17: 999.9999975
C18: 3 | D18: 500 | E18: 500 | F18: 1000
B19: 3 Total | D19: 1500 | E19: 1499.999997 | F19: 2999.999997
B21: Grand Total | D21: 4500 | E21: 4499.999997 | F21: 8999.999997

Sheet ProdCost (hidden)
B4: Total Production Cost | D4: Period
B5: Product | C5: Factory | D5: 1 | E5: 2 | F5: Grand Total
B6: 1 | C6: 1 | D6: 0 | E6: 500 | F6: 500
C7: 2 | D7: 999.75 | E7: 1000 | F7: 1999.75
C8: 3 | D8: 0 | E8: 0 | F8: 0
B9: 1 Total | D9: 999.75 | E9: 1500 | F9: 2499.75
B11: 2 | C11: 1 | D11: 500 | E11: 0 | F11: 500
C12: 2 | D12: 666.5 | E12: 1000 | F12: 1666.5
C13: 3 | D13: 0 | E13: 533.2499892 | F13: 533.2499892
B14: 2 Total | D14: 1166.5 | E14: 1533.249989 | F14: 2699.749989
B16: 3 | C16: 1 | D16: 0 | E16: 2.273509381e-09 | F16: 2.273509381e-09
C17: 2 | D17: 833.7499604 | E17: 500 | F17: 1333.74996
C18: 3 | D18: 1066.000001 | E18: 1499.749958 | F18: 2565.74996
B19: 3 Total | D19: 1899.749962 | E19: 1999.749958 | F19: 3899.49992
B21: Grand Total | D21: 4065.999962 | E21: 5032.999948 | F21: 9098.999909

Sheet ResProd (hidden)
B4: Production per Product | F4: Shipping Costs per Product
B5: Product | C5: Period | D5: Total to Produce | F5: Product | G5: Total Shipping Costs | J5: Total Cost
B6: 1 | C6: 1 | D6: =SUM(Results!E6,Results!E8,Results!E10) -> 3999 | F6: 1 | G6: =SUM(Results!P6:P14) -> 1499.85 | J6: =OFTotalCost -> 23558.4
C7: 2 | D7: =SUM(Results!E7,Results!E9,Results!E11) -> 6000 | F7: 2 | G7: =SUM(Results!P15:P23) -> 1619.85
B8: 2 | C8: 1 | D8: =SUM(Results!E12,Results!E14,Results!E16) -> 4666 | F8: 3 | G8: =SUM(Results!P24:P32) -> 2339.7
C9: 2 | D9: =SUM(Results!E13,Results!E15,Results!E17) -> 6133 | G9: =SUM(G6:G8) -> 5459.4
B10: 3 | C10: 1 | D10: =SUM(Results!E18,Results!E20,Results!E22) -> 7599
C11: 2 | D11: =SUM(Results!E19,Results!E21,Results!E23) -> 7999 | F11: Holding Costs per Product
F12: Product | G12: Period | H12: Total Holding Costs
B13: Shipping per Product | F13: 1 | G13: 1 | H13: =SUMIF(Results!T6:T11,"=1",Results!U6:U11) -> 1500
B14: Product | C14: Period | D14: Total to Ship | G14: 2 | H14: =SUMIF(Results!T7:T12,"=2",Results!U7:U12) -> 1500
B15: 1 | C15: 1 | D15: =SUMIF(Results!$J$6:$J$23, "=1",Results!$K$6:$K$23) -> 3999 | F15: 2 | G15: 1 | H15: =SUMIF(Results!T12:T17,"=1",Results!U12:U17) -> 1500
C16: 2 | D16: =SUMIF(Results!$J$6:$J$23, "=2",Results!$K$6:$K$23) -> 6000 | G16: 2 | H16: =SUMIF(Results!T13:T18,"=2",Results!U13:U18) -> 1500
B17: 2 | C17: 1 | D17: =SUMIF(Results!$J$24:$J$41, "=1",Results!$K$24:$K$41) -> 4666 | F17: 3 | G17: 1 | H17: =SUMIF(Results!T18:T23,"=1",Results!U18:U23) -> 1500
C18: 2 | D18: =SUMIF(Results!$J$24:$J$41, "=2",Results!$K$24:$K$41) -> 6133 | G18: 2 | H18: =SUMIF(Results!T19:T24,"=2",Results!U19:U24) -> 1500
B19: 3 | C19: 1 | D19: =SUMIF(Results!$J$42:$J$59, "=1",Results!$K$42:$K$59) -> 7599 | H19: =SUM(H13:H18) -> 9000
C20: 2 | D20: =SUMIF(Results!$J$42:$J$59, "=2",Results!$K$42:$K$59) -> 7999
F21: Production Costs per Product
F22: Product | G22: Period | H22: Total Production Costs
F23: 1 | G23: 1 | H23: =SUMIF(Results!Y6:Y11,"=1",Results!Z6:Z11) -> 999.75
G24: 2 | H24: =SUMIF(Results!Y7:Y12,"=2",Results!Z7:Z12) -> 1500
F25: 2 | G25: 1 | H25: =SUMIF(Results!Y12:Y17,"=1",Results!Z12:Z17) -> 1166.5
G26: 2 | H26: =SUMIF(Results!Y12:Y17,"=2",Results!Z12:Z17) -> 1533.25
F27: 3 | G27: 1 | H27: =SUMIF(Results!Y18:Y23,"=1",Results!Z18:Z23) -> 1899.75
G28: 2 | H28: =SUMIF(Results!Y18:Y23,"=2",Results!Z18:Z23) -> 1999.75
H29: =SUM(H23:H28) -> 9099

Sheet ResFac (hidden)
B4: Production per Factory | F4: Shipping Costs per Factory
B5: Factory | C5: Period | D5: Total to Produce | F5: Factory | G5: Total Shipping Costs | J5: Total Cost
B6: 1 | C6: 1 | D6: =SUM(Results!E6,Results!E12,Results!E18) -> 10000 | F6: 1 | J6: =OFTotalCost -> 23558.4
C7: 2 | D7: =SUM(Results!E7,Results!E13,Results!E19) -> 10000 | F7: 2
B8: 2 | C8: 1 | D8: =SUM(Results!E8,Results!E14,Results!E20) -> 6264 | F8: 3
C9: 2 | D9: =SUM(Results!E9,Results!E15,Results!E21) -> 10000 | G9: =SUM(G6:G8) -> 0
B10: 3 | C10: 1 | D10: =SUM(Results!E10,Results!E16,Results!E22) -> 0
C11: 2 | D11: =SUM(Results!E11,Results!E17,Results!E23) -> 132 | F11: Holding Costs per Factory
F12: Factory | G12: Period | H12: Total Holding Costs
B13: Shipping per Factory | F13: 1 | G13: 1
B14: Factory | C14: Period | D14: Total to Ship | G14: 2
B15: 1 | C15: 1 | D15: =SUM(Results!K42,Results!K44,Results!K46) -> 7599 | F15: 2 | G15: 1
C16: 2 | D16: =SUM(Results!K11,Results!K9,Results!K7) -> 3867 | G16: 2
B17: 2 | C17: 1 | F17: 3 | G17: 1
C18: 2 | G18: 2
B19: 3 | C19: 1 | H19: =SUM(H13:H18) -> 0
C20: 2
F21: Production Costs per Factory
F22: Factory | G22: Period | H22: Total Production Costs
F23: 1 | G23: 1
G24: 2
F25: 2 | G25: 1
G26: 2
F27: 3 | G27: 1
G28: 2
H29: =SUM(H23:H28) -> 0
